Body Name,Service Area Categorisation,Responsible Unit,Expenses Type,Date,Transaction number,Amount,Supplier Name,Card payment,
Fenland District Council,Housing General Fund Services,Homeless Persons,Supplies and Services,05/09/2018,20197129,"1,200.00 ",Redacted - Personal data,,
Fenland District Council,Stores holding a/c post transfer,Balance Sheet Services,Balance Sheet,19/09/2018,20197600,"4,075.20 ",A&C Weber UK Ltd,,
Fenland District Council,Trading,Economic Estates,Premises Costs,05/09/2018,20197003,"1,260.00 ",A1 Fencing Ltd,,
Fenland District Council,Regeneration Programmes,Capital Services,Capital Costs,19/09/2018,20197352,600.00 ,Adc (East Anglia) Ltd,,
Fenland District Council,Support Services,Fenland Hall,Premises Costs,12/09/2018,20197239,598.92 ,Adcock Refrigeration & Air Conditioning Ltd,,
Fenland District Council,Cultural and Related Services,Arts Development & Culture,Supplies and Services,12/09/2018,20197188,"5,000.00 ",Adec (Arts Devel In E Cambs),,
Fenland District Council,Support Services,Vehicle Workshop & Transport,Transport Costs,19/09/2018,20197568,585.53 ,Allstar Business Solutions Ltd,,
Fenland District Council,Support Services,Vehicle Workshop & Transport,Transport Costs,26/09/2018,20197782,797.62 ,Allstar Business Solutions Ltd,,
Fenland District Council,Environment Services,Safer Fenland,Supplies and Services,26/09/2018,20197337,"2,150.00 ",Alterego Creative Solutions Limited,,
Fenland District Council,Housing General Fund Services,Controlling Migration,Supplies and Services,05/09/2018,10034199,75.99 ,Amazon,Y,
Fenland District Council,Support Services,Accountancy,Supplies and Services,05/09/2018,10034200,7.99 ,Amazon,Y,
Fenland District Council,Cultural and Related Services,Sports Development,Supplies and Services,05/09/2018,10034203,19.98 ,Amazon,Y,
Fenland District Council,Support Services,Information & Communication Technology,Supplies and Services,05/09/2018,10034208,30.00 ,Amazon,Y,
Fenland District Council,Planning Services,HLF - High St Wisbech,Supplies and Services,05/09/2018,10034209,199.99 ,Amazon,Y,
Fenland District Council,Support Services,Information & Communication Technology,Supplies and Services,05/09/2018,10034223,53.78 ,Amazon,Y,
Fenland District Council,Central Services,Emergency Planning,Supplies and Services,05/09/2018,10034225,165.82 ,Amazon,Y,
Fenland District Council,Planning Services,HLF - High St Wisbech,Supplies and Services,05/09/2018,10034228,15.00 ,Amazon,Y,
Fenland District Council,Central Services,Emergency Planning,Supplies and Services,27/09/2018,10034285,179.17 ,Amazon,Y,
Fenland District Council,Support Services,Accountancy,Supplies and Services,27/09/2018,10034287,7.99 ,Amazon,Y,
Fenland District Council,Support Services,Information & Communication Technology,Supplies and Services,27/09/2018,10034303,138.00 ,Amazon,Y,
Fenland District Council,Environment Services,Refuse Collection - Domestic,Third Party Payments,05/09/2018,20194919,"8,050.54 ",AmeyCespa (East) Ltd,,
Fenland District Council,Cultural and Related Services,Recreation Grounds & Allotments,Premises Costs,12/09/2018,20197176,502.13 ,Anglia Locksmiths,,
Fenland District Council,Housing General Fund Services,Homeless Persons,Supplies and Services,19/09/2018,20197158,"2,687.50 ",Anglia Motel,,
Fenland District Council,Housing General Fund Services,Travellers Services,Premises Costs,19/09/2018,20197635,"2,478.94 ",Anglian Water,,
Fenland District Council,Cultural and Related Services,Leisure Centres,Premises Costs,12/09/2018,20197300,942.74 ,Anglian Water Business Ltd (National),,
Fenland District Council,Cultural and Related Services,Leisure Centres,Premises Costs,26/09/2018,20197787,"1,687.74 ",Anglian Water Business Ltd (National),,
Fenland District Council,Cultural and Related Services,Leisure Centres,Premises Costs,26/09/2018,20197788,"1,830.76 ",Anglian Water Business Ltd (National),,
Fenland District Council,Support Services,Vehicle Workshop & Transport,Transport Costs,05/09/2018,10034229,220.00 ,AP Air Ltd,Y,
Fenland District Council,Multiple Services,Multiple Services,Premises Costs,26/09/2018,20197516,"-4,499.31 ",Arthur J Gallagher Insurance Brokers Limited,,
Fenland District Council,Multiple Services,Multiple Services,Premises Costs,26/09/2018,20197528,"44,993.11 ",Arthur J Gallagher Insurance Brokers Limited,,
Fenland District Council,Trading,Marine Services,Supplies and Services,05/09/2018,10034202,458.33 ,Asgard Storage Solutions,Y,
Fenland District Council,Cultural and Related Services,Leisure Centres,Premises Costs,12/09/2018,20197197,"1,592.00 ",Assa Abloy Entrance Systems Ltd,,
Fenland District Council,Housing Grants,Capital Services,Capital Costs,12/09/2018,20197378,"8,108.00 ",Astor Bannerman Medical Ltd,,
Fenland District Council,Support Services,Information & Communication Technology,Supplies and Services,19/09/2018,20197288,"3,290.00 ",Banking Automation Limited,,
Fenland District Council,Regeneration Programmes,Capital Services,Capital Costs,05/09/2018,20197055,"1,100.00 ",Barker Storey Matthews,,
Fenland District Council,Environment Services,Garden Waste,Supplies and Services,19/09/2018,20197187,"2,702.00 ",Bartec Auto ID Limited,,
Fenland District Council,Support Services,Human Resources,Third Party Payments,12/09/2018,20197298,"1,713.60 ",Bedford Borough Council,,
Fenland District Council,Support Services,Human Resources,Third Party Payments,12/09/2018,20197299,"1,782.00 ",Bedford Borough Council,,
Fenland District Council,Wind Turbines,Balance Sheet Services,Balance Sheet,12/09/2018,20197325,"1,154.14 ",Benwick Parish Council,,
Fenland District Council,Housing General Fund Services,Homeless Persons,Supplies and Services,26/09/2018,20197781,"1,075.00 ",Redacted - Personal data,,
Fenland District Council,Housing General Fund Services,Travellers Services,Premises Costs,05/09/2018,20195148,700.00 ,Bloom & Wake Ltd,,
Fenland District Council,Housing Grants,Capital Services,Capital Costs,12/09/2018,20197215,717.30 ,Borough Council Of Kings Lynn & West Norfolk,,
Fenland District Council,Housing Grants,Capital Services,Capital Costs,12/09/2018,20197216,"1,443.82 ",Borough Council Of Kings Lynn & West Norfolk,,
Fenland District Council,Housing Grants,Capital Services,Capital Costs,12/09/2018,20197217,"1,412.36 ",Borough Council Of Kings Lynn & West Norfolk,,
Fenland District Council,Housing Grants,Capital Services,Capital Costs,12/09/2018,20197374,"2,432.40 ",Borough Council Of Kings Lynn & West Norfolk,,
Fenland District Council,Housing Grants,Capital Services,Capital Costs,12/09/2018,20197375,"1,417.57 ",Borough Council Of Kings Lynn & West Norfolk,,
Fenland District Council,Support Services,Information & Communication Technology,Supplies and Services,19/09/2018,20197338,"19,444.44 ",Bramble Hub Ltd,,
Fenland District Council,Central Services,Council Tax Cost of Collection,Income,12/09/2018,20197291,"5,722.00 ",Breckland Council,,
Fenland District Council,Housing General Fund Services,Housing Benefits,Supplies and Services,12/09/2018,20197292,"37,733.00 ",Breckland Council,,
Fenland District Council,Cultural and Related Services,Leisure Centres,Supplies and Services,12/09/2018,20197170,719.00 ,Brenntag UK Limited,,
Fenland District Council,Support Services,Information & Communication Technology,Supplies and Services,05/09/2018,20197005,"1,893.03 ",Britannic Technologies Ltd,,
Fenland District Council,Multiple Services,Multiple Services,Premises Costs,05/09/2018,20196479,"3,745.37 ",British Telecommunications plc,,
Fenland District Council,Multiple Services,Multiple Services,Premises Costs,05/09/2018,20196480,"4,568.93 ",British Telecommunications plc,,
Fenland District Council,Multiple Services,Multiple Services,Premises Costs,05/09/2018,20196481,"3,703.12 ",British Telecommunications plc,,
Fenland District Council,Housing Grants,Capital Services,Capital Costs,05/09/2018,20197060,"20,380.00 ",C D Allflatt Ltd,,
Fenland District Council,Housing General Fund Services,Housing Strategy,Supplies and Services,12/09/2018,20197306,"15,350.00 ",Cambridge City Council,,
Fenland District Council,Housing General Fund Services,Housing Strategy,Supplies and Services,05/09/2018,20196887,"2,000.00 ",Cambridgeshire Acre,,
Fenland District Council,Trading,Economic Estates,Premises Costs,05/09/2018,10034248,50.00 ,Cambridgeshire County Council,Y,
Fenland District Council,Housing General Fund Services,Care & Repair,Third Party Payments,12/09/2018,20196875,"17,499.00 ",Cambridgeshire County Council,,
Fenland District Council,Trading,Economic Estates,Supplies and Services,19/09/2018,20197545,"25,481.63 ",Cambridgeshire County Council,,
Fenland District Council,Trading,Refuse Collection - Trade,Third Party Payments,19/09/2018,20197577,"12,667.53 ",Cambridgeshire County Council,,
Fenland District Council,"Highways, Roads and Transportation Services",Transport Development,Supplies and Services,26/09/2018,20197636,"33,052.84 ",Cambridgeshire County Council,,
Fenland District Council,Support Services,Information & Communication Technology,Supplies and Services,19/09/2018,20197274,742.00 ,Capita Business Services Ltd,,
Fenland District Council,Support Services,Information & Communication Technology,Supplies and Services,19/09/2018,20197275,"7,292.50 ",Capita Business Services Ltd,,
Fenland District Council,Central Services,Elections & Electoral Registration,Supplies and Services,12/09/2018,20197345,627.00 ,CFH Docmail Ltd,,
Fenland District Council,Support Services,Human Resources,Employee Costs,26/09/2018,20197786,980.00 ,Chartered Institute of Environmental Health,,
Fenland District Council,S106 Chatteris,Balance Sheet Services,Balance Sheet,26/09/2018,20197704,"1,802.00 ",Chatteris Town Council,,
Fenland District Council,Multiple Services,Multiple Services,Premises Costs,05/09/2018,20196889,"1,385.00 ",CIA Solutions,,
Fenland District Council,Support Services,Assets & Projects Services,Supplies and Services,05/09/2018,20197006,"1,495.00 ",CIPFA Business Ltd,,
Fenland District Council,Housing General Fund Services,Housing Strategy,Supplies and Services,05/09/2018,20197116,"5,053.87 ",Civica UK Limited,,
Fenland District Council,Housing Grants,Capital Services,Capital Costs,12/09/2018,20197220,"3,114.25 ",Clarion Housing,,
Fenland District Council,Housing Grants,Capital Services,Capital Costs,12/09/2018,20197221,"1,982.48 ",Clarion Housing,,
Fenland District Council,Housing Grants,Capital Services,Capital Costs,12/09/2018,20197222,"1,262.12 ",Clarion Housing,,
Fenland District Council,Housing Grants,Capital Services,Capital Costs,12/09/2018,20197223,"2,713.16 ",Clarion Housing,,
Fenland District Council,Housing General Fund Services,Homeless Persons,Premises Costs,19/09/2018,20197381,"4,721.28 ",Clarion Housing,,
Fenland District Council,Housing General Fund Services,Homeless Persons,Premises Costs,12/09/2018,20197382,"5,287.68 ",Clarion Housing,,
Fenland District Council,Housing General Fund Services,Homeless Persons,Premises Costs,19/09/2018,20197383,"4,601.28 ",Clarion Housing,,
Fenland District Council,Housing General Fund Services,Homeless Persons,Premises Costs,12/09/2018,20197384,"5,561.76 ",Clarion Housing,,
Fenland District Council,Housing General Fund Services,Homeless Persons,Premises Costs,12/09/2018,20197385,"5,793.12 ",Clarion Housing,,
Fenland District Council,Housing General Fund Services,Homeless Persons,Premises Costs,12/09/2018,20197386,"5,093.76 ",Clarion Housing,,
Fenland District Council,Housing General Fund Services,Homeless Persons,Premises Costs,12/09/2018,20197387,"5,712.48 ",Clarion Housing,,
Fenland District Council,Housing General Fund Services,Homeless Persons,Premises Costs,12/09/2018,20197388,"5,561.76 ",Clarion Housing,,
Fenland District Council,Housing Grants,Capital Services,Capital Costs,26/09/2018,20197640,"2,993.68 ",Clarion Housing,,
Fenland District Council,Housing Grants,Capital Services,Capital Costs,26/09/2018,20197641,"1,429.43 ",Clarion Housing,,
Fenland District Council,Housing Grants,Capital Services,Capital Costs,26/09/2018,20197642,621.48 ,Clarion Housing,,
Fenland District Council,Housing Grants,Capital Services,Capital Costs,26/09/2018,20197699,"2,103.03 ",Clarion Housing,,
Fenland District Council,Cultural and Related Services,Leisure Centres,Premises Costs,19/09/2018,20197369,891.00 ,Cobra Engineering (Uk) Ltd,,
Fenland District Council,Support Services,Assets & Projects Services,Employee Costs,12/09/2018,20196989,"10,669.58 ",Comensura Limited,,
Fenland District Council,Support Services,Assets & Projects Services,Employee Costs,19/09/2018,20197246,"7,965.09 ",Comensura Limited,,
Fenland District Council,Support Services,Assets & Projects Services,Employee Costs,26/09/2018,20197533,"4,482.87 ",Comensura Limited,,
Fenland District Council,Support Services,Assets & Projects Services,Employee Costs,26/09/2018,20197651,"8,152.16 ",Comensura Limited,,
Fenland District Council,Support Services,Assets & Projects Services,Employee Costs,26/09/2018,20197783,"8,175.77 ",Comensura Limited,,
Fenland District Council,Support Services,Internal Audit,Supplies and Services,05/09/2018,10034245,266.00 ,Connaught Hotel,Y,
Fenland District Council,Housing General Fund Services,Homeless Persons,Supplies and Services,19/09/2018,20197517,"1,525.00 ",Cottons Properties Ltd T/a Belvoir Spalding,,
Fenland District Council,Support Services,Human Resources,Employee Costs,19/09/2018,20197604,750.00 ,Creative Learning Systems,,
Fenland District Council,Central Services,Elections & Electoral Registration,Supplies and Services,12/09/2018,20197171,"1,769.20 ",Democracy Counts,,
Fenland District Council,Refuse Vehicles,Capital Services,Capital Costs,26/09/2018,20197024,"167,116.00 ",Dennis Eagle,,
Fenland District Council,Refuse Vehicles,Capital Services,Capital Costs,26/09/2018,20197025,"167,116.00 ",Dennis Eagle,,
Fenland District Council,Support Services,Vehicle Workshop & Transport,Transport Costs,26/09/2018,20197070,"1,230.41 ",Dennis Eagle,,
Fenland District Council,Support Services,Vehicle Workshop & Transport,Transport Costs,12/09/2018,20197277,605.14 ,Dennis Eagle,,
Fenland District Council,Cultural and Related Services,Leisure Centres,Supplies and Services,26/09/2018,20196765,"2,131.30 ",DMI Leisure Limited,,
Fenland District Council,Housing General Fund Services,Travellers Services,Premises Costs,26/09/2018,20197790,850.00 ,Dr Tree Ltd,,
Fenland District Council,Trading,Marine Services,Premises Costs,12/09/2018,20197191,"1,335.00 ",Drake Towage Limited,,
Fenland District Council,Support Services,Vehicle Workshop & Transport,Transport Costs,05/09/2018,10034201,252.50 ,DVLA,Y,
Fenland District Council,Support Services,Vehicle Workshop & Transport,Transport Costs,27/09/2018,10034286,905.00 ,DVLA,Y,
Fenland District Council,Support Services,Post & Reprographics,Supplies and Services,12/09/2018,20197237,"2,856.70 ",Eastern Rent A Van & Cars (Bossretty Ltd),,
Fenland District Council,Cultural and Related Services,Leisure Centres,Premises Costs,25/09/2018,20197746,"1,720.48 ",Eastern Shires Purchasing Organisation,,
Fenland District Council,Cultural and Related Services,Leisure Centres,Premises Costs,25/09/2018,20197747,"1,681.84 ",Eastern Shires Purchasing Organisation,,
Fenland District Council,Planning Services,Economic Development,Supplies and Services,05/09/2018,10034197,13.19 ,Email Blaster UK,Y,
Fenland District Council,Planning Services,Economic Development,Supplies and Services,27/09/2018,10034283,13.19 ,Email Blaster UK,Y,
Fenland District Council,Community Development,Capital Services,Capital Costs,19/09/2018,20197638,"50,000.00 ",Estover Playing Field,,
Fenland District Council,Cultural and Related Services,Leisure Centres,Supplies and Services,05/09/2018,10034230,31.12 ,Facebook,Y,
Fenland District Council,Cultural and Related Services,Leisure Centres,Supplies and Services,27/09/2018,10034306,30.61 ,Facebook,Y,
Fenland District Council,"Highways, Roads and Transportation Services",Transport Development,Supplies and Services,12/09/2018,20197182,"4,354.25 ",Fact Ltd,,
Fenland District Council,Environment Services,Public Health,Third Party Payments,12/09/2018,20197195,"1,380.00 ",Fenland Stray Dog Collection,,
Fenland District Council,Cultural and Related Services,Leisure Centres,Supplies and Services,05/09/2018,10034226,48.00 ,Financial Conduct Authority (FCA),Y,
Fenland District Council,Central Services,Council Tax Cost of Collection,Third Party Payments,12/09/2018,20197332,"1,912.50 ",Forest Heath District Council,,
Fenland District Council,Planning Services,HLF - High St Wisbech,Supplies and Services,05/09/2018,20197031,"1,500.00 ",Forgotten Heritage Limited,,
Fenland District Council,Housing Grants,Capital Services,Capital Costs,12/09/2018,20197311,"3,702.55 ",Foster Property Maintenance Ltd,,
Fenland District Council,Trading,Economic Estates,Supplies and Services,25/09/2018,20196006,512.00 ,Francotyp Postalia Ltd,,
Fenland District Council,Trading,Economic Estates,Supplies and Services,25/09/2018,20196482,762.00 ,Francotyp Postalia Ltd,,
Fenland District Council,Trading,Economic Estates,Supplies and Services,25/09/2018,20197748,762.00 ,Francotyp Postalia Ltd,,
Fenland District Council,Trading,Economic Estates,Supplies and Services,25/09/2018,20197750,762.00 ,Francotyp Postalia Ltd,,
Fenland District Council,Cultural and Related Services,Recreation Grounds & Allotments,Supplies and Services,19/09/2018,20197567,600.00 ,Friends Of Wisbech Band Stand,,
Fenland District Council,Support Services,Vehicle Workshop & Transport,Transport Costs,12/09/2018,20197295,603.18 ,Fuchs Lubricants (Uk) Plc,,
Fenland District Council,Housing Grants,Capital Services,Capital Costs,12/09/2018,20197376,"4,715.24 ",Futureheat Plumbing & Heating Services,,
Fenland District Council,Housing Grants,Capital Services,Capital Costs,19/09/2018,20197581,"6,280.00 ",Futureheat Plumbing & Heating Services,,
Fenland District Council,Housing Grants,Capital Services,Capital Costs,19/09/2018,20197582,"6,974.00 ",Futureheat Plumbing & Heating Services,,
Fenland District Council,Housing Grants,Capital Services,Capital Costs,19/09/2018,20197583,"8,685.00 ",Futureheat Plumbing & Heating Services,,
Fenland District Council,Housing Grants,Capital Services,Capital Costs,12/09/2018,20197214,"8,445.50 ",Gaswise,,
Fenland District Council,Corporate and Democratic Core,Democratic Services,Supplies and Services,26/09/2018,20197625,690.00 ,Greys of Ely Ltd,,
Fenland District Council,Wind Turbines,Balance Sheet Services,Balance Sheet,12/09/2018,20197196,"3,858.50 ",Groundwork East,,
Fenland District Council,Trading,Economic Estates,Supplies and Services,26/09/2018,20197675,"1,189.00 ",H Richmond t/a The Sandwich Bar,,
Fenland District Council,Housing Grants,Capital Services,Capital Costs,12/09/2018,20197219,"15,000.00 ",Hampton Uk Ltd,,
Fenland District Council,Cultural and Related Services,Recreation Grounds & Allotments,Supplies and Services,27/09/2018,10034293,249.99 ,Health and Care,Y,
Fenland District Council,Support Services,Vehicle Workshop & Transport,Transport Costs,12/09/2018,20197406,870.06 ,HGV Truck & Trailer Parts,,
Fenland District Council,Planning Services,Community Events,Supplies and Services,12/09/2018,20197349,695.00 ,Highline Adventure Ltd,,
Fenland District Council,Central Services,Council Tax Cost of Collection,Supplies and Services,05/09/2018,10034204,351.00 ,HM Courts Service,Y,
Fenland District Council,Central Services,Council Tax Cost of Collection,Supplies and Services,27/09/2018,10034297,386.50 ,HM Courts Service,Y,
Fenland District Council,Environment Services,Streetscene,Supplies and Services,27/09/2018,10034304,9.99 ,hpicheck.com,Y,
Fenland District Council,Corporate and Democratic Core,Corporate Management,Supplies and Services,05/09/2018,20197016,"1,266.66 ",Hunts Forum,,
Fenland District Council,Support Services,Information & Communication Technology,Supplies and Services,26/09/2018,20197722,"1,425.00 ",Idox Software Limited,,
Fenland District Council,Support Services,Vehicle Workshop & Transport,Transport Costs,26/09/2018,20197765,725.00 ,immedia-8,,
Fenland District Council,Cultural and Related Services,Leisure Centres,Supplies and Services,05/09/2018,20196431,680.00 ,Institute of Swimming,,
Fenland District Council,Cultural and Related Services,Recreation Grounds & Allotments,Premises Costs,26/09/2018,20197602,"2,255.50 ",Invasive Vegetation Management & Treatment Ltd,,
Fenland District Council,Planning Services,Community Events,Supplies and Services,12/09/2018,20197363,"1,000.00 ",J.H.B Amusements,,
Fenland District Council,Planning Services,Community Events,Supplies and Services,12/09/2018,20197364,512.00 ,J.H.B Amusements,,
Fenland District Council,Environment Services,Licensing,Employee Costs,12/09/2018,20197107,"1,074.27 ",James Andrews Recruitment Solutions,,
Fenland District Council,Environment Services,Food Safety,Employee Costs,05/09/2018,20197108,991.87 ,James Andrews Recruitment Solutions,,
Fenland District Council,Environment Services,Food Safety,Employee Costs,12/09/2018,20197228,999.68 ,James Andrews Recruitment Solutions,,
Fenland District Council,Environment Services,Licensing,Employee Costs,12/09/2018,20197229,896.37 ,James Andrews Recruitment Solutions,,
Fenland District Council,Environment Services,Licensing,Employee Costs,19/09/2018,20197535,"1,046.90 ",James Andrews Recruitment Solutions,,
Fenland District Council,Environment Services,Food Safety,Employee Costs,26/09/2018,20197647,"1,202.74 ",James Andrews Recruitment Solutions,,
Fenland District Council,Environment Services,Licensing,Employee Costs,26/09/2018,20197648,"1,040.06 ",James Andrews Recruitment Solutions,,
Fenland District Council,Planning Services,Community Events,Supplies and Services,12/09/2018,20191984,"1,200.00 ",Redacted - Personal data,,
Fenland District Council,Environment Services,Streetscene,Supplies and Services,05/09/2018,20197058,-976.50 ,Kingdom Service Group Ltd,,
Fenland District Council,Environment Services,Streetscene,Supplies and Services,05/09/2018,20197061,976.50 ,Kingdom Service Group Ltd,,
Fenland District Council,Environment Services,Streetscene,Supplies and Services,05/09/2018,20197062,"1,581.00 ",Kingdom Service Group Ltd,,
Fenland District Council,Environment Services,Streetscene,Supplies and Services,26/09/2018,20197709,"3,673.50 ",Kingdom Service Group Ltd,,
Fenland District Council,Support Services,Post & Reprographics,Supplies and Services,05/09/2018,20197011,"1,225.00 ",Kingsfield Computer Products Ltd,,
Fenland District Council,Cultural and Related Services,Recreation Grounds & Allotments,Premises Costs,26/09/2018,20197211,"1,710.00 ",Kompan Limited,,
Fenland District Council,Cultural and Related Services,Recreation Grounds & Allotments,Premises Costs,26/09/2018,20197372,"20,000.00 ",Kompan Limited,,
Fenland District Council,Cultural and Related Services,Leisure Centres,Supplies and Services,26/09/2018,20197760,750.00 ,Leisure-Net Solutions,,
Fenland District Council,Support Services,Information & Communication Technology,Supplies and Services,05/09/2018,20197072,887.50 ,LinchPin Networks,,
Fenland District Council,Support Services,Information & Communication Technology,Supplies and Services,19/09/2018,20197556,"3,000.00 ",LinchPin Networks,,
Fenland District Council,Cultural and Related Services,Sports Development,Supplies and Services,05/09/2018,10034205,274.95 ,Local Government Information Unit,Y,
Fenland District Council,Housing General Fund Services,Travellers Services,Premises Costs,12/09/2018,20197328,"1,200.00 ",M & M Services,,
Fenland District Council,Housing General Fund Services,Travellers Services,Premises Costs,12/09/2018,20197329,"1,580.00 ",M & M Services,,
Fenland District Council,Sewage Treatment Works Recon Prog,Capital Services,Capital Costs,26/09/2018,20197335,"1,505.00 ",Malcolm Hughes Land Surveyors Ltd,,
Fenland District Council,Housing General Fund Services,Homeless Persons,Supplies and Services,12/09/2018,20197157,612.50 ,Marmion House Hotel,,
Fenland District Council,Corporate and Democratic Core,Corporate Management,Supplies and Services,05/09/2018,10034198,480.00 ,Marriot Hotels,Y,
Fenland District Council,Environment Services,Cemeteries,Premises Costs,19/09/2018,20197495,715.00 ,Martin Works Blacksmiths And Fabrications,,
Fenland District Council,Support Services,Human Resources,Employee Costs,19/09/2018,20197521,"1,147.94 ",Mary Gober International Ltd,,
Fenland District Council,"Highways, Roads and Transportation Services",Transport Development,Supplies and Services,05/09/2018,10034249,74.56 ,MDP Supplies Ltd,Y,
Fenland District Council,Planning Services,Community Events,Supplies and Services,26/09/2018,20197791,550.00 ,Melton Mowbray Toy Soldiers Band,,
Fenland District Council,Support Services,Customer First,Supplies and Services,26/09/2018,20197634,530.00 ,MHFA England CIC,,
Fenland District Council,Support Services,Information & Communication Technology,Supplies and Services,05/09/2018,10034196,7.90 ,Microsoft Ltd,Y,
Fenland District Council,Support Services,Information & Communication Technology,Supplies and Services,27/09/2018,10034284,15.80 ,Microsoft Ltd,Y,
Fenland District Council,Trading,Marine Services,Supplies and Services,12/09/2018,20197359,937.00 ,Mis Fuel Monitoring Ltd,,
Fenland District Council,Housing General Fund Services,Travellers Services,Premises Costs,05/09/2018,20196837,970.70 ,Nene Property Solutions Ltd,,
Fenland District Council,Support Services,Fenland Hall,Premises Costs,19/09/2018,20197508,800.00 ,Nene Property Solutions Ltd,,
Fenland District Council,Cultural and Related Services,Leisure Centres,Premises Costs,19/09/2018,20197509,"2,046.78 ",Nene Property Solutions Ltd,,
Fenland District Council,"Highways, Roads and Transportation Services",Transport Development,Supplies and Services,05/09/2018,20196990,"14,461.76 ",Network Rail Infrastructure Ltd,,
Fenland District Council,Support Services,Accountancy,Supplies and Services,19/09/2018,20197589,658.02 ,Newlyn PLC,,
Fenland District Council,Corporate and Democratic Core,Policy & Comms,Third Party Payments,19/09/2018,20197494,711.00 ,NLA media access limited,,
Fenland District Council,Environment Services,Street Cleansing,Supplies and Services,19/09/2018,20197605,764.39 ,Northern Municipal Spares Ltd,,
Fenland District Council,Support Services,Information & Communication Technology,Supplies and Services,05/09/2018,20197064,"25,920.50 ",NorthgateArinso Uk Ltd,,
Fenland District Council,Support Services,Information & Communication Technology,Supplies and Services,19/09/2018,20197543,967.31 ,O2 (Uk) Limited,,
Fenland District Council,Cultural and Related Services,Sports Development,Supplies and Services,05/09/2018,10034210,20.00 ,One Training Services Ltd (Food Safety UK),Y,
Fenland District Council,Support Services,Customer First,Premises Costs,26/09/2018,20197705,"8,493.89 ",OpenArch Properties Ltd,,
Fenland District Council,Support Services,The Base,Premises Costs,12/09/2018,20197230,600.00 ,P.H. Door Services,,
Fenland District Council,Fuel Control Account,Balance Sheet Services,Balance Sheet,25/09/2018,20197778,"36,578.86 ",Pace Fuelcare,,
Fenland District Council,Trading,Marine Services,Transport Costs,25/09/2018,20197779,"2,019.50 ",Pace Fuelcare,,
Fenland District Council,Trading,Marine Services,Transport Costs,25/09/2018,20197780,"2,033.15 ",Pace Fuelcare,,
Fenland District Council,Trading,Economic Estates,Premises Costs,19/09/2018,20197489,"2,915.21 ",Page Group (Peterborough) Ltd,,
Fenland District Council,Corporate and Democratic Core,Corporate Management,Employee Costs,26/09/2018,20197701,"11,700.00 ",Penna Plc,,
Fenland District Council,Cultural and Related Services,Recreation Grounds & Allotments,Supplies and Services,12/09/2018,20197128,"16,226.84 ",Peter J Ward Nurseryman Ltd,,
Fenland District Council,Support Services,Legal Services,Supplies and Services,19/09/2018,20197396,"7,955.57 ",Peterborough City Council,,
Fenland District Council,Support Services,Legal Services,Supplies and Services,19/09/2018,20197397,"5,742.10 ",Peterborough City Council,,
Fenland District Council,Support Services,Legal Services,Supplies and Services,19/09/2018,20197398,"6,305.41 ",Peterborough City Council,,
Fenland District Council,Planning Services,Development Control,Employee Costs,12/09/2018,20197399,"4,351.36 ",Peterborough City Council,,
Fenland District Council,Cultural and Related Services,Recreation Grounds & Allotments,Supplies and Services,19/09/2018,20197544,750.00 ,Peterborough City Council,,
Fenland District Council,Support Services,Information & Communication Technology,Supplies and Services,05/09/2018,20196972,"1,936.80 ",Phoenix Software Limited,,
Fenland District Council,Cultural and Related Services,Leisure Centres,Third Party Payments,05/09/2018,20196862,"12,356.08 ",PPL PRS Ltd,,
Fenland District Council,Housing General Fund Services,Travellers Services,Premises Costs,05/09/2018,20197103,600.00 ,Pro-Clean Industrial UK Ltd,,
Fenland District Council,Corporate and Democratic Core,Corporate Management,Supplies and Services,05/09/2018,10034247,220.00 ,Public Health England,Y,
Fenland District Council,Corporate and Democratic Core,Democratic Services,Supplies and Services,19/09/2018,20197614,"1,666.99 ",QAV Limited,,
Fenland District Council,Environment Services,CCTV,Supplies and Services,05/09/2018,20197071,"2,220.92 ",Quadrant Security Group Limited,,
Fenland District Council,"Highways, Roads and Transportation Services",Car Parks,Premises Costs,12/09/2018,20197123,776.43 ,R J Warren Ltd,,
Fenland District Council,"Highways, Roads and Transportation Services",Car Parks,Premises Costs,19/09/2018,20197497,"1,230.00 ",R J Warren Ltd,,
Fenland District Council,Support Services,Human Resources,Supplies and Services,05/09/2018,20197073,"1,516.00 ",Reed Business Information,,
Fenland District Council,Support Services,Fenland Hall,Premises Costs,12/09/2018,20197238,"3,000.00 ",Reliable Removals & Storage,,
Fenland District Council,Housing Grants,Capital Services,Capital Costs,12/09/2018,20197224,"21,300.00 ",Richard Masham,,
Fenland District Council,"Highways, Roads and Transportation Services",Highways (District),Supplies and Services,12/09/2018,20197007,"1,669.18 ",Ringway Infrastructure Services Ltd,,
Fenland District Council,"Highways, Roads and Transportation Services",Car Parks,Premises Costs,05/09/2018,20197008,990.20 ,Ringway Infrastructure Services Ltd,,
Fenland District Council,Planning Services,Community Events,Premises Costs,26/09/2018,20197610,"1,346.50 ",Ringway Infrastructure Services Ltd,,
Fenland District Council,Housing General Fund Services,Controlling Migration,Supplies and Services,12/09/2018,20197241,"17,000.00 ",Rosmini Centre Wisbech,,
Fenland District Council,Housing General Fund Services,Controlling Migration,Supplies and Services,12/09/2018,20197242,"10,624.50 ",Rosmini Centre Wisbech,,
Fenland District Council,Housing General Fund Services,Controlling Migration,Supplies and Services,12/09/2018,20197243,"13,812.50 ",Rosmini Centre Wisbech,,
Fenland District Council,Central Services,Elections & Electoral Registration,Supplies and Services,12/09/2018,20197249,"2,338.00 ",Royal Mail,,
Fenland District Council,Central Services,Elections & Electoral Registration,Supplies and Services,12/09/2018,20197251,"2,572.50 ",Royal Mail,,
Fenland District Council,Central Services,Elections & Electoral Registration,Supplies and Services,19/09/2018,20197400,"1,119.65 ",Royal Mail,,
Fenland District Council,Multiple Services,Multiple Services,Supplies and Services,05/09/2018,20196009,"1,184.15 ",RSP Rail Travel Account,,
Fenland District Council,Housing General Fund Services,Housing Benefits,Third Party Payments,05/09/2018,20197109,"1,050.00 ",Rural Cambs Citizen Advice Bureau Ltd,,
Fenland District Council,Housing Grants,Capital Services,Capital Costs,26/09/2018,20197698,"2,000.00 ",Redacted - Personal data,,
Fenland District Council,Multiple Services,Multiple Services,Premises Costs,12/09/2018,20197257,994.50 ,Severn Trent Services Operations UK Ltd,,
Fenland District Council,Multiple Services,Multiple Services,Premises Costs,26/09/2018,20197578,994.50 ,Severn Trent Services Operations UK Ltd,,
Fenland District Council,Environment Services,Pollution Reduction,Supplies and Services,19/09/2018,20197487,"1,104.75 ",Socotec Uk Limited,,
Fenland District Council,Support Services,Human Resources,Supplies and Services,12/09/2018,20197235,"2,354.09 ",Sodexo Motivation Solutions UK Ltd,,
Fenland District Council,Planning Services,Community Support,Supplies and Services,12/09/2018,20197169,"1,349.00 ",Solon Security,,
Fenland District Council,Cultural and Related Services,Leisure Centres,Supplies and Services,12/09/2018,20197354,690.00 ,Soopa Doopa Branding Limited,,
Fenland District Council,Housing General Fund Services,Homeless Persons,Employee Costs,05/09/2018,20197117,"4,289.05 ",South Cambridgeshire District Council,,
Fenland District Council,Housing General Fund Services,Housing Strategy,Supplies and Services,12/09/2018,20197350,830.29 ,South Cambridgeshire District Council,,
Fenland District Council,Housing General Fund Services,Housing Strategy,Supplies and Services,12/09/2018,20197351,"9,312.71 ",South Cambridgeshire District Council,,
Fenland District Council,Environment Services,Refuse Collection - Domestic,Employee Costs,26/09/2018,20197773,"3,956.63 ",South Cambridgeshire District Council,,
Fenland District Council,Support Services,Fenland Hall,Premises Costs,05/09/2018,20197113,561.33 ,Specialist Signs Ltd,,
Fenland District Council,Housing Grants,Capital Services,Capital Costs,12/09/2018,20197218,"2,381.00 ",Stannah Lift Services Ltd,,
Fenland District Council,Support Services,Vehicle Workshop & Transport,Transport Costs,19/09/2018,20197536,535.74 ,Stapleton's (Retail) Limited,,
Fenland District Council,Environment Services,Sewage Treatment Works,Premises Costs,12/09/2018,20197346,"2,227.50 ",Strattons Liquid Waste Disposal Limited,,
Fenland District Council,Corporate and Democratic Core,Policy & Comms,Supplies and Services,05/09/2018,10034227,560.00 ,SurveyMonkey.Com,Y,
Fenland District Council,Cultural and Related Services,Leisure Centres,Supplies and Services,05/09/2018,20196775,769.00 ,Swim England Trading Limited,,
Fenland District Council,General Suspense Control A/C,Balance Sheet Services,Balance Sheet,26/09/2018,20197697,545.47 ,Synergy Multi Academy Trust,,
Fenland District Council,Multiple Services,Multiple Services,Premises Costs,12/09/2018,20197240,731.67 ,T Clarke East Ltd,,
Fenland District Council,Housing General Fund Services,Homeless Persons,Supplies and Services,05/09/2018,20197084,600.00 ,Redacted - Personal data,,
Fenland District Council,Environment Services,Public Health,Supplies and Services,05/09/2018,10034244,495.48 ,Tennyson Insurance Ltd,Y,
Fenland District Council,Support Services,Vehicle Workshop & Transport,Transport Costs,19/09/2018,20197561,647.53 ,Terberg Matec Uk Ltd,,
Fenland District Council,Environment Services,Refuse Collection - Domestic,Supplies and Services,05/09/2018,10034224,80.83 ,Tesco Stores,Y,
Fenland District Council,Cultural and Related Services,Sports Development,Supplies and Services,27/09/2018,10034289,144.07 ,Tesco Stores,Y,
Fenland District Council,Corporate and Democratic Core,Democratic Services,Supplies and Services,27/09/2018,10034305,216.30 ,Tesco Stores,Y,
Fenland District Council,Corporate and Democratic Core,Policy & Comms,Supplies and Services,05/09/2018,20195034,"1,441.04 ",The Copyright Licensing Agency Ltd,,
Fenland District Council,"Highways, Roads and Transportation Services",Car Parks,Premises Costs,26/09/2018,20197576,"2,040.00 ",The National Trust,,
Fenland District Council,Environment Services,Cemeteries,Premises Costs,05/09/2018,20196274,570.40 ,Tivoli Group Limited,,
Fenland District Council,Trading,Marine Services,Supplies and Services,26/09/2018,20197232,"9,500.00 ",Redacted - Personal data,,
Fenland District Council,Support Services,The Base,Premises Costs,19/09/2018,20197425,"1,784.47 ",Total Gas & Power Limited,,
Fenland District Council,Cultural and Related Services,Leisure Centres,Premises Costs,19/09/2018,20197426,"1,122.65 ",Total Gas & Power Limited,,
Fenland District Council,Trading,Economic Estates,Premises Costs,19/09/2018,20197447,553.53 ,Total Gas & Power Limited,,
Fenland District Council,Trading,Economic Estates,Premises Costs,19/09/2018,20197460,"2,171.95 ",Total Gas & Power Limited,,
Fenland District Council,Trading,Economic Estates,Premises Costs,19/09/2018,20197461,"1,497.00 ",Total Gas & Power Limited,,
Fenland District Council,Cultural and Related Services,Leisure Centres,Premises Costs,19/09/2018,20197464,743.70 ,Total Gas & Power Limited,,
Fenland District Council,Support Services,Fenland Hall,Premises Costs,19/09/2018,20197465,"2,600.86 ",Total Gas & Power Limited,,
Fenland District Council,Cultural and Related Services,Leisure Centres,Premises Costs,19/09/2018,20197466,"3,130.67 ",Total Gas & Power Limited,,
Fenland District Council,Trading,Economic Estates,Premises Costs,19/09/2018,20197468,727.17 ,Total Gas & Power Limited,,
Fenland District Council,Cultural and Related Services,Leisure Centres,Premises Costs,19/09/2018,20197470,"1,495.19 ",Total Gas & Power Limited,,
Fenland District Council,Cultural and Related Services,Leisure Centres,Premises Costs,19/09/2018,20197572,"3,854.87 ",Total Gas & Power Limited,,
Fenland District Council,Housing General Fund Services,Homeless Persons,Supplies and Services,05/09/2018,20197085,"1,045.00 ",Redacted - Personal data,,
Fenland District Council,Planning Services,Community Events,Supplies and Services,26/09/2018,20197770,550.00 ,Townies Carriage hire,,
Fenland District Council,Housing General Fund Services,Homeless Persons,Supplies and Services,12/09/2018,20197130,"1,800.00 ",Ukos Projects Limited T/A Elephant and Castle,,
Fenland District Council,Housing General Fund Services,Homeless Persons,Supplies and Services,26/09/2018,20197654,850.00 ,Ukos Projects Limited T/A Elephant and Castle,,
Fenland District Council,Housing General Fund Services,Homeless Persons,Supplies and Services,26/09/2018,20197734,"1,200.00 ",Ukos Projects Limited T/A Elephant and Castle,,
Fenland District Council,Stores holding a/c post transfer,Balance Sheet Services,Balance Sheet,26/09/2018,20197715,"1,096.00 ",Vision Gelpack Flexible Packaging,,
Fenland District Council,Environment Services,Cemeteries,Supplies and Services,19/09/2018,20197560,550.00 ,W & W G West,,
Fenland District Council,Housing General Fund Services,Homeless Persons,Supplies and Services,19/09/2018,20197518,931.00 ,Redacted - Personal data,,
Fenland District Council,Housing General Fund Services,Homeless Persons,Supplies and Services,05/09/2018,20197083,"1,150.00 ",Redacted - Personal data,,
Fenland District Council,Corporate and Democratic Core,Democratic Services,Supplies and Services,12/09/2018,20197212,"1,318.00 ",Wilkin Chapman LLP,,
Fenland District Council,Support Services,Fenland Hall,Premises Costs,19/09/2018,20197472,"2,293.57 ",World Of Flooring Limited,,
Fenland District Council,All Risks (Insurance Control A/C),Balance Sheet Services,Balance Sheet,05/09/2018,20197087,"12,568.86 ",Zurich Municipal,,
Fenland District Council,All Risks (Insurance Control A/C),Balance Sheet Services,Balance Sheet,05/09/2018,20197088,"19,905.89 ",Zurich Municipal,,
Fenland District Council,All Risks (Insurance Control A/C),Balance Sheet Services,Balance Sheet,05/09/2018,20197089,"352,016.67 ",Zurich Municipal,,
